Workbook

Sheet Model
A1: Agro Chain Greenhouse gases Emissions (ACGE) calculator
A2: Jan Broeze, Wageningen Food & Biobased Research, version 13 December 2019
A3: CASE: vegetables case in Sub-Sahara Africa
A4: Geographical region (production) | C4: Sub-Saharan Africa
A5: Geographical region (consumption) | C5: Sub-Saharan Africa
A6: Crop | C6: Vegetables: fresh
A8: GLOBAL RESULT | D8: TOTAL IMPACT PER KG CROP | E8: =SUM(E13:E83)/$C$13 -> 0.5993297365 | F8: =SUM(F13:F83)/$C$13 -> 0.4355286626
B9: CHAIN PRODUCT EFFICIENCY (KG SOLD/KG CROP) | C9: =C77*(1-C82)/C13 -> 0.4065331725 | D9: TOTALS PER KG SOLD IN RETAIL | E9: =E8/$C$9 -> 1.474245589 | F9: =F8/$C$9 -> 1.071323798
E10: Energy use (MJ) | F10: CO2-equiv. | G10: CO2 IMPACT | H10: cum. CO2
E11: (primary equivalent) | F11: emissions (kg) | G11: per chain stage | H11: kg per kg
G12: per kg end product
A13: Agricultural production | B13: Initial unit | C13: 1 | D13: kg crop
A14: Crop CO2 emission factor | C14: =OFFSET(DataRegionProduction!$A$1,MATCH(Crop,Crops,0)+4,11) -> 0.4 | D14: kg CO2eq per kg harvested crop | F14: =C14*C13 -> 0.4
G15: =H15 -> 0.4 | H15: =SUM(F13:F14)/C16 -> 0.4
A16: Postharvest handling and storage | B16: product in | C16: =C13*(1-0) -> 1 | D16: kg
A17: Average number of hours at ambient conditions | C17: 0 | D17: hours
A18: Ambient temperature | C18: 20 | D18: C
A19: Average number of days in refrig. storage | C19: 0 | D19: days | E19: =0.01*C19*C16 -> 0 | F19: =0.047*E19 -> 0
A20: Other energy use | C20: 0 | D20: MJ per kg product (primary energy eq.) | E20: =C20 -> 0 | F20: =E20/20 -> 0
A21: Losses | C21: =OFFSET(DataRegionProduction!$A$1,MATCH(Crop,Crops,0)+4,2) -> 0.1771
A22: Losses waste management | C22: (left out of the analysis) | F22: =OFFSET(ResiduesManagmOptions!$A$1,MATCH(PostHarvLossesMgm,ListResiduesProcessingOptions,0)+2,1)*PostHarvestHandlLosses*C16 -> 0
A24: Collection transport
A25: Transport distance | C25: 100 | D25: km
A26: Transport modality | C26: Truck, medium | E26: =OFFSET(TransportModalities!$A$1,MATCH($C26,TransportModul,0)+2,2)*C16/1000*$C25 -> 0.3569033208 | F26: =OFFSET(TransportModalities!$A$1,MATCH($C26,TransportModul,0)+2,3)*$C16/1000*$C25 -> 0.02198795
A27: Refrigeration in transport? | C27: 0 | E27: =0.2*$C27*E26 -> 0 | F27: =0.2*$C27*F26 -> 0
G28: =H28-H15 -> 0.1128058695 | H28: =SUM(F18:F28)/C29+H15*C16/C29 -> 0.5128058695
A29: Primary processing and packaging | B29: product in | C29: =C16*(1-C21) -> 0.8229 | D29: kg
A30: Losses | C30: =OFFSET(DataRegionProduction!$A$1,MATCH(Crop,Crops,0)+4,4) -> 0.25
A31: Losses waste management | C31: (left out of the analysis) | F31: =OFFSET(ResiduesManagmOptions!$A$1,MATCH(PrimaryProcLossesMgm, ListResiduesProcessingOptions,0)+2,1)*PrimaryProcLosses*C29 -> 0
A32: Packaging steel | C32: 0 | D32: kg steel packaging per kg product | E32: =27*C32*C44 -> 0 | F32: =2.6*C32*C44 -> 0
A33: Packaging aluminium | C33: 0 | D33: kg aluminium per kg product | E33: =170*C33*C44 -> 0 | F33: =16*C33*C44 -> 0
A34: Packaging paper and board | C34: 0 | D34: kg paper and board per kg product | E34: =25*C34*C44 -> 0 | F34: =0.5*C34*C$44 -> 0
A35: Packaging plastics | C35: 0 | D35: kg plastics per kg product | E35: =80*C35*C44 -> 0 | F35: =3*C35*C44 -> 0
A36: Packaging glass | C36: 0 | D36: kg glass per kg product | E36: =7.6*C36*C44 -> 0 | F36: =0.6*C36*C44 -> 0
A37: Reusable transportation means (pellets, crates, etc.) | C37: 0 | D37: kg tarra per kg product
A38: Processing and packaging electricity use | C38: 0 | D38: MJ per kg product (primary energy equiv.) | E38: =C38*C44 -> 0 | F38: =E38*0.5/3.6/3.14 -> 0
A39: Processing and packaging fuels use | C39: 0 | D39: MJ per kg product (primary energy equiv.) | E39: =C39*C44 -> 0 | F39: =E39*0.07 -> 0
A40: Average number of hours at ambient conditions | C40: 0 | D40: hours
A41: Ambient temperature | C41: 20 | D41: C
A42: Average number of days in refrig. storage | C42: 0 | D42: days | E42: =0.01*C42*$C$29*(1+SUM($C$32:$C37)) -> 0 | F42: =0.047*E42 -> 0
G43: =H43-H28 -> 0.1709352898 | H43: =SUM(F30:F43)/C44+H28*C29/C44 -> 0.6837411593
A44: (Possibly international) transport | B44: product in | C44: =C29*(1-C30) -> 0.617175 | D44: kg
A45: Transport 1 distance | C45: 40 | D45: km
A46: Transport 1 modality | C46: Truck, medium | E46: =OFFSET(TransportModalities!$A$1,MATCH($C46,TransportModul,0)+2,2)*$C45*$C$44/1000*(1+SUM($C$32:$C37)) -> 0.08810872281 | F46: =OFFSET(TransportModalities!$A$1,MATCH($C46,TransportModul,0)+2,3)*$C$44/1000*$C45*(1+SUM($C$32:$C37)) -> 0.005428165216
A47: Ambient (0), chilled (1) or frozen (2)? | C47: 1 | E47: =0.2*$C47*E46 -> 0.01762174456 | F47: =0.2*$C47*F46 -> 0.001085633043
A48: Transport 2 distance | C48: 100 | D48: km
A49: Transport 2 modality | C49: Sea ship, cargo | E49: =OFFSET(TransportModalities!$A$1,MATCH($C49,TransportModul,0)+2,2)*$C$44/1000*$C48*(1+SUM($C$32:$C37)) -> 0.01105079023 | F49: =OFFSET(TransportModalities!$A$1,MATCH($C49,TransportModul,0)+2,3)*$C$44/1000*$C48*(1+SUM($C$32:$C37)) -> 0.0007126369134
A50: Ambient (0), chilled (1) or frozen (2)? | C50: 1 | E50: =0.2*$C50*E49 -> 0.002210158045 | F50: =0.2*$C50*F49 -> 0.0001425273827
A51: Transport 3 distance | C51: 0 | D51: km
A52: Transport 3 modality | C52: Lorry, very larg (>32ton) | E52: =OFFSET(TransportModalities!$A$1,MATCH($C52,TransportModul,0)+2,2)*$C$44/1000*$C51*(1+SUM($C$32:$C37)) -> 0 | F52: =OFFSET(TransportModalities!$A$1,MATCH($C52,TransportModul,0)+2,3)*$C$44/1000*$C51*(1+SUM($C$32:$C37)) -> 0
A53: Ambient (0), chilled (1) or frozen (2)? | C53: 1 | E53: =0.2*$C53*E52 -> 0 | F53: =0.2*$C53*F52 -> 0
G54: =H54-H43 -> 0.01193982672 | H54: =SUM(F45:F54)/C55+C44/C55*H43 -> 0.695680986
A55: Processing/repackaging/distribution | B55: product in | C55: =C44 -> 0.617175 | D55: kg
A56: Losses | C56: =OFFSET(DataRegionConsumption!$A$1,MATCH($C$6,Crops,0)+4,6) -> 0
A57: Losses waste management | C57: (left out of the analysis) | F57: =OFFSET(ResiduesManagmOptions!$A$1,MATCH(DitribProcLossesMgm, ListResiduesProcessingOptions1,0)+2,1)*DistribProcLosses*C55 -> 0
A58: Packaging steel | C58: 0 | D58: kg steel packaging per kg product | E58: =27*C58*C55*(1-C56) -> 0 | F58: =2.6*C58*C55*(1-C56) -> 0
A59: Packaging aluminium | C59: 0 | D59: kg aluminium per kg product | E59: =170*C59*C55*(1-C56) -> 0 | F59: =16*C59*C55*(1-C56) -> 0
A60: Packaging paper and board | C60: 0 | D60: kg paper and board per kg product | E60: =25*C60*C55*(1-C56) -> 0 | F60: =1*C60*C55*(1-C56) -> 0
A61: Packaging plastics | C61: 0 | D61: kg plastics per kg product | E61: =80*C61*C55*(1-C56) -> 0 | F61: =3*C61*C55*(1-C56) -> 0
A62: Packaging glass | C62: 0 | D62: kg glass per kg product | E62: =7.6*C62*C55*(1-C56) -> 0 | F62: =0.6*C62*C72 -> 0
A63: Adding water to processed product | C63: 0 | D63: kg water per kg product
A64: Reusable transportation means (pellets, crates, etc.) | C64: =C37 -> 0 | D64: kg tarra per kg product
A65: Processing and packaging electricity use | C65: =0 -> 0 | D65: MJ per kg product (primary energy equiv.) | E65: =C65*C55 -> 0 | F65: =E65*0.5/3.6/3.14 -> 0
A66: Processing and packaging fuels use | C66: 0 | D66: MJ per kg product (primary energy equiv.) | E66: =C66*C55 -> 0 | F66: =E66*0.07 -> 0
A67: Average number of hours at ambient conditions | D67: hours
A68: Ambient temperature | D68: C
A69: Average number of days in refrig. storage | C69: 0 | D69: days | E69: =0.01*C69*C55*(1+SUM(C32:C37)+SUM(C58:C63)+C64) -> 0 | F69: =0.047*E69 -> 0
A70: Other energy use | C70: 0.1 | D70: MJ per kg product (primary energy eq.) | E70: =C70*C55 -> 0.0617175 | F70: =E70/20 -> 0.003085875
G71: =H71-H54 -> 0.005 | H71: =SUM(F57:F71)/C72+C55/C72*H54 -> 0.700680986
A72: Distribution transport | B72: product in | C72: =C55*(1-C56) -> 0.617175 | D72: kg
A73: Transport distance | C73: 0 | D73: km
A74: Transport modality | C74: Truck, small | E74: =OFFSET(TransportModalities!$A$1,MATCH($C74,TransportModul,0)+2,2)*$C$72/1000*(1+SUM(C32:C37)+SUM(C58:C63)+C64)*$C73 -> 0 | F74: =OFFSET(TransportModalities!$A$1,MATCH($C74,TransportModul,0)+2,3)*$C$72/1000*(1+SUM(C32:C37)+SUM(C58:C63)+C64)*$C73 -> 0
A75: Refrigeration in transport? | C75: 0 | E75: =0.2*$C75*E74 -> 0 | F75: =0.2*$C75*F74 -> 0
G76: =H76-H54 -> 0.005 | H76: =SUM(F55:F76)/C77+C55/C77*H54 -> 0.700680986
A77: Retail shop | B77: product in | C77: =C55*(1-C56) -> 0.617175 | D77: kg
A78: Average number of hours at ambient conditions | D78: hours
A79: Ambient temperature | D79: C
A80: Average number of days in refrig. storage | C80: 0 | D80: days | E80: =0.67*C80*C77 -> 0 | F80: =0.031*C80*C77 -> 0
A81: Other energy use | C81: 0.1 | D81: MJ per kg product (primary energy eq.) | E81: =C81*C77 -> 0.0617175 | F81: =E81/20 -> 0.003085875
A82: Losses | C82: =OFFSET(DataRegionConsumption!$A$1,MATCH(Crop,DataRegionConsumption!A6:A32,0)+4,8) -> 0.3413 | D82: percent
A83: Losses waste management | C83: (left out of the analysis) | F83: =OFFSET(ResiduesManagmOptions!$A$1,MATCH(RetailLossesMgm, ListResiduesProcessingOptions1,0)+2,1)*RetailLosses*C77 -> 0
B85: product sold | C85: =C77*(1-RetailLosses) -> 0.4065331725 | G85: =H85-H76 -> 0.3706428124 | H85: =SUM(F77:F83)/C85+C77/C85*H76 -> 1.071323798
A88: This work was implemented as part of the Consultative Group on International Agricultural Research (CGIAR) Research Program on Climate Change, Agriculture and Food Security (CCAFS), which is carried out with support from CGIAR Fund Donors and through bilateral funding agreements. For more information, please visit https://ccafs.cgiar.org/donors.
A93: The developer of this tool checked correctness through comparison with other calculations. However, since the secondary offered in this tool are based on averages the results cannot be expected to exactly predict the GHG emissions and food losses in a specific practical situation.
A97: For further information and recommendations please contact jan.broeze@wur.nl

Sheet DataRegionProduction (hidden)
A1: Sub-Saharan Africa
B2: Reference losses per stage along the chain (% losses)
B3: Agricultural production | C3: Postharvest handling and storage | D3: (Possibly international) transport | E3: Processing and Packaging | F3: (Possibly international) transport | G3: Distribution center | H3: Distribution transport | I3: Retail | J3: Consumer | L3: CO2 impact Agricultural production | N3: Exergetic value (eMJ/kg) | P3: Productivity (kg/ha) | Q3: Area (million hectare)
A5: (Percent losses)
A6: Barley | B6: 0.0721 | C6: 0.0875 | E6: 0.1525 | I6: 0.02 | J6: 0.01 | L6: 0.8 | N6: 25 | P6: 1300
A7: Maize | B7: 0.0721 | C7: 0.0875 | E7: 0.1525 | I7: 0.02 | J7: 0.01 | L7: 1.56 | N7: 25 | P7: 1300
A8: Millet | B8: 0.0721 | C8: 0.0875 | E8: 0.1525 | I8: 0.02 | J8: 0.01 | L8: 0.93 | N8: 25 | P8: 1300
A9: Oats | B9: 0.0721 | C9: 0.0875 | E9: 0.1525 | I9: 0.02 | J9: 0.01 | L9: 0.93 | N9: 25 | P9: 1300
A10: Rice | B10: 0.0721 | C10: 0.0875 | E10: 0.1525 | I10: 0.02 | J10: 0.01 | L10: 5.23 | N10: 25 | P10: 1300
A11: Rye | B11: 0.0721 | C11: 0.0875 | E11: 0.1525 | I11: 0.02 | J11: 0.01 | L11: 0.38 | N11: 25 | P11: 1300
A12: Sorghum | B12: 0.0721 | C12: 0.0875 | E12: 0.1525 | I12: 0.02 | J12: 0.01 | L12: 0.93 | N12: 25 | P12: 1300
A13: Wheat | B13: 0.0721 | C13: 0.0875 | E13: 0.1525 | I13: 0.02 | J13: 0.01 | L13: 0.46 | N13: 25 | P13: 1300
A14: Roots and Tubers: fresh | B14: 0.14 | C14: 0.1694 | E14: 0.15 | I14: 0.05 | J14: 0.02 | L14: 0.52 | N14: 25 | P14: 8200
A15: Roots and Tubers: processed | B15: 0.14 | C15: 0.1694 | E15: 0.15 | I15: 0.02 | J15: 0.01 | L15: 0.52 | N15: 25 | P15: 8200
A16: Cassava | B16: 0.14 | C16: 0.1694 | E16: 0.15 | I16: 0.02 | J16: 0.01 | L16: 0.04 | N16: 25 | P16: 9000
A17: Oil palm | B17: 0.12 | C17: 0.0818 | E17: 0.08 | I17: 0.02 | J17: 0.01 | L17: 0.65 | N17: 25 | P17: 1400
A18: Oil crops | B18: 0.12 | C18: 0.0818 | E18: 0.08 | I18: 0.02 | J18: 0.01 | L18: 3.94 | N18: 25 | P18: 1400
A19: Pulses | B19: 0.12 | C19: 0.0818 | E19: 0.08 | I19: 0.02 | J19: 0.01 | L19: 0.12 | N19: 25 | P19: 500
A20: Fruits: fresh | B20: 0.1347 | C20: 0.1771 | E20: 0.25 | I20: 0.3413 | J20: 0.05 | L20: 0.4 | N20: 3.2455 | P20: 6900
A21: Fruits: processed | B21: 0.1347 | C21: 0.1771 | E21: 0.25 | I21: 0.1 | J21: 0.01 | L21: 0.4 | N21: 3.2455 | P21: 6900
A22: Vegetables: fresh | B22: 0.1347 | C22: 0.1771 | E22: 0.25 | I22: 0.3413 | J22: 0.05 | L22: 0.4 | N22: 3.2455 | P22: 9800
A23: Vegetables: processed | B23: 0.1347 | C23: 0.1771 | E23: 0.25 | I23: 0.1 | J23: 0.01 | L23: 0.4 | N23: 3.2455 | P23: 9800
A24: Meat: beef | B24: 0.1 | C24: 0.0093 | E24: 0.05 | I24: 0.07 | J24: 0.02 | L24: 33.96 | N24: 10
A25: Meat: pork | B25: 0.1 | C25: 0.0023 | E25: 0.05 | I25: 0.07 | J25: 0.02 | L25: 4.27 | N25: 10
A26: Meat: poultry | B26: 0.25 | C26: 0.009 | E26: 0.05 | I26: 0.07 | J26: 0.02 | L26: 4.89 | N26: 10
A27: Eggs | B27: 0.08 | C27: 0.08 | E27: 0.001 | I27: 0.03 | J27: 0.01 | L27: 6.18 | N27: 10
A28: Milk | B28: 0.06 | C28: 0.082 | E28: 0.02 | I28: 0.1 | J28: 0.001 | L28: 4.16 | N28: 5
A29: Fish and seafood: fresh | B29: 0.057 | C29: 0.2194 | E29: 0.09 | I29: 0.15 | J29: 0.02 | L29: 9.19 | N29: 10
A30: Fish and seafood: processed | B30: 0.057 | C30: 0.2194 | E30: 0.09 | I30: 0.1 | J30: 0.01 | L30: 9.19 | N30: 10
A31: Grapes | B31: 0.1347 | C31: 0.1771 | E31: 0.25 | I31: 0.3413 | J31: 0.05 | L31: 0.4 | N31: 3.2455
A32: Tomato | B32: 0.1347 | C32: 0.1771 | E32: 0.25 | I32: 0.3413 | J32: 0.05 | L32: 0.3 | N32: 3.25
A33: Dry beans | B33: 0.12 | C33: 0.0818 | E33: 0.08 | I33: 0.02 | J33: 0.01 | L33: 0.12 | N33: 25 | S33: Nemecek et al., 2011:
A34: Sugar crops | P34: 60700
A35: Forage | P35: 22000

Sheet DataRegionConsumption (hidden)
A1: Sub-Saharan Africa
B2: Reference losses per stage along the chain (% losses)
B3: Agricultural production | C3: Postharvest handling and storage | D3: (Possibly international) transport | E3: Processing and Packaging | F3: (Possibly international) transport | G3: Distribution center | H3: Distribution transport | I3: Retail | J3: Consumer | L3: CO2 impact Agricultural production | N3: Exergetic value (eMJ/kg) | P3: Productivity (kg/ha) | Q3: Area (million hectare)
A5: (Percent losses)
A6: Barley | B6: 0.0721 | C6: 0.0875 | E6: 0.1525 | I6: 0.02 | J6: 0.01 | L6: 0.8 | N6: 25 | P6: 1300
A7: Maize | B7: 0.0721 | C7: 0.0875 | E7: 0.1525 | I7: 0.02 | J7: 0.01 | L7: 1.56 | N7: 25 | P7: 1300
A8: Millet | B8: 0.0721 | C8: 0.0875 | E8: 0.1525 | I8: 0.02 | J8: 0.01 | L8: 0.93 | N8: 25 | P8: 1300
A9: Oats | B9: 0.0721 | C9: 0.0875 | E9: 0.1525 | I9: 0.02 | J9: 0.01 | L9: 0.93 | N9: 25 | P9: 1300
A10: Rice | B10: 0.0721 | C10: 0.0875 | E10: 0.1525 | I10: 0.02 | J10: 0.01 | L10: 5.23 | N10: 25 | P10: 1300
A11: Rye | B11: 0.0721 | C11: 0.0875 | E11: 0.1525 | I11: 0.02 | J11: 0.01 | L11: 0.38 | N11: 25 | P11: 1300
A12: Sorghum | B12: 0.0721 | C12: 0.0875 | E12: 0.1525 | I12: 0.02 | J12: 0.01 | L12: 0.93 | N12: 25 | P12: 1300
A13: Wheat | B13: 0.0721 | C13: 0.0875 | E13: 0.1525 | I13: 0.02 | J13: 0.01 | L13: 0.46 | N13: 25 | P13: 1300
A14: Roots and Tubers: fresh | B14: 0.14 | C14: 0.1694 | E14: 0.15 | I14: 0.05 | J14: 0.02 | L14: 0.52 | N14: 25 | P14: 8200
A15: Roots and Tubers: processed | B15: 0.14 | C15: 0.1694 | E15: 0.15 | I15: 0.02 | J15: 0.01 | L15: 0.52 | N15: 25 | P15: 8200
A16: Cassava | B16: 0.14 | C16: 0.1694 | E16: 0.15 | I16: 0.02 | J16: 0.01 | L16: 0.04 | N16: 25 | P16: 9000
A17: Oil palm | B17: 0.12 | C17: 0.0818 | E17: 0.08 | I17: 0.02 | J17: 0.01 | L17: 0.65 | N17: 25 | P17: 1400
A18: Oil crops | B18: 0.12 | C18: 0.0818 | E18: 0.08 | I18: 0.02 | J18: 0.01 | L18: 3.94 | N18: 25 | P18: 1400
A19: Pulses | B19: 0.12 | C19: 0.0818 | E19: 0.08 | I19: 0.02 | J19: 0.01 | L19: 0.12 | N19: 25 | P19: 500
A20: Fruits: fresh | B20: 0.1347 | C20: 0.1771 | E20: 0.25 | I20: 0.3413 | J20: 0.05 | L20: 0.4 | N20: 3.2455 | P20: 6900
A21: Fruits: processed | B21: 0.1347 | C21: 0.1771 | E21: 0.25 | I21: 0.1 | J21: 0.01 | L21: 0.4 | N21: 3.2455 | P21: 6900
A22: Vegetables: fresh | B22: 0.1347 | C22: 0.1771 | E22: 0.25 | I22: 0.3413 | J22: 0.05 | L22: 0.4 | N22: 3.2455 | P22: 9800
A23: Vegetables: processed | B23: 0.1347 | C23: 0.1771 | E23: 0.25 | I23: 0.1 | J23: 0.01 | L23: 0.4 | N23: 3.2455 | P23: 9800
A24: Meat: beef | B24: 0.1 | C24: 0.0093 | E24: 0.05 | I24: 0.07 | J24: 0.02 | L24: 33.96 | N24: 10
A25: Meat: pork | B25: 0.1 | C25: 0.0023 | E25: 0.05 | I25: 0.07 | J25: 0.02 | L25: 4.27 | N25: 10
A26: Meat: poultry | B26: 0.25 | C26: 0.009 | E26: 0.05 | I26: 0.07 | J26: 0.02 | L26: 4.89 | N26: 10
A27: Eggs | B27: 0.08 | C27: 0.08 | E27: 0.001 | I27: 0.03 | J27: 0.01 | L27: 6.18 | N27: 10
A28: Milk | B28: 0.06 | C28: 0.082 | E28: 0.02 | I28: 0.1 | J28: 0.001 | L28: 4.16 | N28: 5
A29: Fish and seafood: fresh | B29: 0.057 | C29: 0.2194 | E29: 0.09 | I29: 0.15 | J29: 0.02 | L29: 9.19 | N29: 10
A30: Fish and seafood: processed | B30: 0.057 | C30: 0.2194 | E30: 0.09 | I30: 0.1 | J30: 0.01 | L30: 9.19 | N30: 10
A31: Grapes | B31: 0.1347 | C31: 0.1771 | E31: 0.25 | I31: 0.3413 | J31: 0.05 | L31: 0.4 | N31: 3.2455
A32: Tomato | B32: 0.1347 | C32: 0.1771 | E32: 0.25 | I32: 0.3413 | J32: 0.05 | L32: 0.3 | N32: 3.25
A33: Dry beans | B33: 0.12 | C33: 0.0818 | E33: 0.08 | I33: 0.02 | J33: 0.01 | L33: 0.12 | N33: 25 | S33: Nemecek et al., 2011:
A34: Sugar crops | P34: 60700
A35: Forage | P35: 22000

Sheet DataEurope
A1: Europe
B2: Reference losses per stage along the chain (% losses)
B3: Agricultural production | C3: Postharvest handling and storage | D3: Collection transport | E3: Processing and Packaging | F3: (Possibly international) transport | G3: Distribution center | H3: Distribution transport | I3: Retail | J3: Consumer | L3: CO2 impact Agricultural production | N3: Exergetic value (eMJ/kg) | P3: Productivity (kg/ha)
A5: (Percent losses)
A6: Barley | B6: 0.0433 | C6: 0.0385 | E6: 0.105 | I6: 0.03 | J6: 0.27 | L6: 1.57 | N6: 25 | P6: 3000
A7: Maize | B7: 0.0433 | C7: 0.0385 | E7: 0.105 | I7: 0.03 | J7: 0.27 | L7: 0.45 | N7: 25 | P7: 3000
A8: Millet | B8: 0.0433 | C8: 0.0385 | E8: 0.105 | I8: 0.03 | J8: 0.27 | L8: 0.93 | N8: 25 | P8: 3000
A9: Oats | B9: 0.0433 | C9: 0.0385 | E9: 0.105 | I9: 0.03 | J9: 0.27 | L9: 0.61 | N9: 25 | P9: 3000
A10: Rice | B10: 0.0433 | C10: 0.0385 | E10: 0.105 | I10: 0.03 | J10: 0.27 | L10: 2.88 | N10: 25 | P10: 3000
A11: Rye | B11: 0.0433 | C11: 0.0385 | E11: 0.105 | I11: 0.03 | J11: 0.27 | L11: 0.46 | N11: 25 | P11: 3000
A12: Sorghum | B12: 0.0433 | C12: 0.0385 | E12: 0.105 | I12: 0.03 | J12: 0.27 | L12: 0.93 | N12: 25 | P12: 3000
A13: Wheat | B13: 0.0433 | C13: 0.0385 | E13: 0.105 | I13: 0.03 | J13: 0.27 | L13: 0.61 | N13: 25 | P13: 3000
A14: Roots and Tubers: fresh | B14: 0.2 | C14: 0.0761 | E14: 0.1382 | I14: 0.07 | J14: 0.17 | L14: 0.25 | N14: 25 | P14: 15100
A15: Roots and Tubers: processed | B15: 0.2 | C15: 0.0761 | E15: 0.1382 | I15: 0.03 | J15: 0.12 | L15: 0.25 | N15: 25 | P15: 15100
A16: Oil crops | B16: 0.0528 | C16: 0.0115 | E16: 0.1382 | I16: 0.01 | J16: 0.04 | L16: 1.13 | N16: 25 | P16: 1700
A17: Pulses | B17: 0.0528 | C17: 0.0115 | E17: 0.1382 | I17: 0.01 | J17: 0.04 | L17: 0.93 | N17: 25 | P17: 2100
A18: Fruits: fresh | B18: 0.2 | C18: 0.0732 | E18: 0.02 | I18: 0.0487 | J18: 0.19 | L18: 0.5 | N18: 3.2455 | P18: 7800
A19: Fruits: processed | B19: 0.2 | C19: 0.0732 | E19: 0.02 | I19: 0.02 | J19: 0.15 | L19: 0.5 | N19: 3.2455 | P19: 7800
A20: Iceberg letuce | B20: 0.2 | C20: 0.0732 | E20: 0.02 | I20: 0.0487 | J20: 0.19 | L20: 0.3 | N20: 3.2455 | P20: 18100
A21: Vegetables: fresh | B21: 0.2 | C21: 0.0732 | E21: 0.02 | I21: 0.0487 | J21: 0.19 | L21: 0.5 | N21: 3.2455 | P21: 18100
A22: Vegetables: processed | B22: 0.2 | C22: 0.0732 | E22: 0.02 | I22: 0.02 | J22: 0.15 | L22: 0.5 | N22: 3.2455 | P22: 18100
A23: Meat: beef | B23: 0.023 | C23: 0.0063 | E23: 0.05 | I23: 0.0405 | J23: 0.11 | L23: 22.86 | N23: 10
A24: Meat: pork | B24: 0.025 | C24: 0.0032 | E24: 0.05 | I24: 0.0405 | J24: 0.11 | L24: 5.06 | N24: 10
A25: Meat: poultry | B25: 0.07 | C25: 0.0094 | E25: 0.05 | I25: 0.0405 | J25: 0.11 | L25: 3.58 | N25: 10
A26: Eggs | B26: 0.04 | C26: 0.0186 | E26: 0.005 | I26: 0.02 | J26: 0.08 | L26: 3.49 | N26: 10
A27: Milk | B27: 0.035 | C27: 0.0167 | E27: 0.012 | I27: 0.0082 | J27: 0.07 | L27: 1.33 | N27: 5
A28: Fish and seafood: fresh | B28: 0.094 | C28: 0.079 | E28: 0.06 | I28: 0.09 | J28: 0.11 | L28: 4.09 | N28: 10
A29: Fish and seafood: processed | B29: 0.094 | C29: 0.079 | E29: 0.06 | I29: 0.05 | J29: 0.1 | L29: 4.09 | N29: 10
A30: Grapes | B30: 0.2 | C30: 0.0732 | E30: 0.02 | G30: 0.01 | I30: 0.0487 | J30: 0.19 | L30: 0.42 | N30: 3.2455
A31: Tomato | B31: 0.2 | C31: 0.0732 | E31: 0.02 | I31: 0.0487 | J31: 0.19 | L31: 0.84 | N31: 3.25
A32: Dry beans | B32: 0.0528 | C32: 0.0115 | E32: 0.1382 | I32: 0.01 | J32: 0.04 | L32: 0.93 | N32: 25
A33: Sugar crops
A34: Forage

Sheet DataNAmOce
A1: North America and Ociania
B2: Reference losses per stage along the chain (% losses)
B3: Agricultural production | C3: Postharvest handling and storage | D3: (Possibly international) transport | E3: Processing and Packaging | F3: (Possibly international) transport | G3: Distribution center | H3: Distribution transport | I3: Retail | J3: Consumer | L3: CO2 impact Agricultural production | N3: Exergetic value (eMJ/kg) | P3: Productivity (kg/ha)
A6: Barley | B6: 0.0717 | C6: 0.0325 | E6: 0.105 | I6: 0.08 | J6: 0.15 | L6: 0.4 | N6: 25 | P6: 4700
A7: Maize | B7: 0.0717 | C7: 0.0325 | E7: 0.105 | I7: 0.08 | J7: 0.15 | L7: 0.38 | N7: 25 | P7: 4700
A8: Millet | B8: 0.0717 | C8: 0.0325 | E8: 0.105 | I8: 0.08 | J8: 0.15 | L8: 0.93 | N8: 25 | P8: 4700
A9: Oats | B9: 0.0717 | C9: 0.0325 | E9: 0.105 | I9: 0.08 | J9: 0.15 | L9: 0.93 | N9: 25 | P9: 4700
A10: Rice | B10: 0.0717 | C10: 0.0325 | E10: 0.105 | I10: 0.08 | J10: 0.15 | L10: 2.58 | N10: 25 | P10: 4700
A11: Rye | B11: 0.0717 | C11: 0.0325 | E11: 0.105 | I11: 0.08 | J11: 0.15 | L11: 0.76 | N11: 25 | P11: 4700
A12: Sorghum | B12: 0.0717 | C12: 0.0325 | E12: 0.105 | I12: 0.08 | J12: 0.15 | L12: 0.93 | N12: 25 | P12: 4700
A13: Wheat | B13: 0.0717 | C13: 0.0325 | E13: 0.105 | I13: 0.08 | J13: 0.15 | L13: 0.6 | N13: 25 | P13: 4700
A14: Roots and Tubers: fresh | B14: 0.2 | C14: 0.0583 | E14: 0.15 | I14: 0.08 | J14: 0.15 | L14: 0.17 | N14: 25 | P14: 35100
A15: Roots and Tubers: processed | B15: 0.2 | C15: 0.0583 | E15: 0.15 | I15: 0.08 | J15: 0.15 | L15: 0.17 | N15: 25 | P15: 35100
A16: Oil crops | B16: 0.12 | C16: 0.0391 | E16: 0.05 | I16: 0.01 | J16: 0.04 | L16: 0.56 | N16: 25 | P16: 2300
A17: Pulses | B17: 0.12 | C17: 0.0391 | E17: 0.05 | I17: 0.01 | J17: 0.04 | L17: 0.44 | N17: 25 | P17: 1300
A18: Fruits: fresh | B18: 0.2 | C18: 0.153 | E18: 0.02 | I18: 0.0935 | J18: 0.2543 | L18: 0.4 | N18: 3.2455 | P18: 18300
A19: Fruits: processed | B19: 0.2 | C19: 0.0732 | E19: 0.02 | I19: 0.02 | J19: 0.15 | L19: 0.4 | N19: 3.2455 | P19: 18300
A20: Vegetables: fresh | B20: 0.2 | C20: 0.153 | E20: 0.02 | I20: 0.0935 | J20: 0.2543 | L20: 0.58 | N20: 3.2455 | P20: 23400
A21: Vegetables: processed | B21: 0.2 | C21: 0.0732 | E21: 0.02 | I21: 0.0475 | J21: 0.146 | L21: 0.58 | N21: 3.2455 | P21: 23400
A22: Meat: beef | B22: 0.023 | C22: 0.0031 | E22: 0.05 | I22: 0.039 | J22: 0.2119 | L22: 22.08 | N22: 10
A23: Meat: pork | B23: 0.025 | C23: 0.0066 | E23: 0.05 | I23: 0.039 | J23: 0.2119 | L23: 4.29 | N23: 10
A24: Meat: poultry | B24: 0.07 | C24: 0.0088 | E24: 0.05 | I24: 0.039 | J24: 0.2119 | L24: 4.39 | N24: 10
A25: Eggs | B25: 0.04 | C25: 0.0227 | E25: 0.005 | I25: 0.07 | J25: 0.204 | L25: 3.66 | N25: 10
A26: Milk | B26: 0.035 | C26: 0.004 | E26: 0.012 | I26: 0.0775 | J26: 0.21 | L26: 1.13 | N26: 5
A27: Fish and seafood: fresh | B27: 0.12 | C27: 0.0222 | E27: 0.06 | I27: 0.0683 | J27: 0.2817 | L27: 4.42 | N27: 10
A28: Fish and seafood: processed | B28: 0.12 | C28: 0.0222 | E28: 0.06 | I28: 0.055 | J28: 0.14 | L28: 4.42 | N28: 10
A29: Grapes | B29: 0.2 | C29: 0.0732 | E29: 0.02 | I29: 0.0487 | J29: 0.19 | L29: 0.67 | N29: 3.2455
A30: Tomato | B30: 0.2 | C30: 0.0732 | E30: 0.02 | I30: 0.0487 | J30: 0.19 | L30: 0.58 | N30: 3.25
A31: Dry beans | B31: 0.12 | C31: 0.0391 | E31: 0.0391 | I31: 0.01 | J31: 0.04 | L31: 0.44 | N31: 25
A32: Sugar crops
A33: Forage

Sheet DataIndusAsia
A1: Industrialized Asia
B2: Reference losses per stage along the chain (% losses)
B3: Agricultural production | C3: Postharvest handling and storage | D3: (Possibly international) transport | E3: Processing and Packaging | F3: (Possibly international) transport | G3: Distribution center | H3: Distribution transport | I3: Retail | J3: Consumer | L3: CO2 impact Agricultural production | N3: Exergetic value (eMJ/kg) | P3: Productivity (kg/ha)
A5: (Percent losses)
A6: Barley | B6: 0.0392 | C6: 0.0424 | E6: 0.118 | I6: 0.02 | J6: 0.1365 | L6: 0.63 | N6: 25 | P6: 3400
A7: Maize | B7: 0.0392 | C7: 0.0424 | E7: 0.118 | I7: 0.02 | J7: 0.1365 | L7: 0.44 | N7: 25 | P7: 3400
A8: Millet | B8: 0.0392 | C8: 0.0424 | E8: 0.118 | I8: 0.02 | J8: 0.1365 | L8: 0.93 | N8: 25 | P8: 3400
A9: Oats | B9: 0.0392 | C9: 0.0424 | E9: 0.118 | I9: 0.02 | J9: 0.1365 | L9: 0.93 | N9: 25 | P9: 3400
A10: Rice | B10: 0.0392 | C10: 0.0424 | E10: 0.118 | I10: 0.02 | J10: 0.1365 | L10: 1.43 | N10: 25 | P10: 3400
A11: Rye | B11: 0.0392 | C11: 0.0424 | E11: 0.118 | I11: 0.02 | J11: 0.1365 | L11: 1.02 | N11: 25 | P11: 3400
A12: Sorghum | B12: 0.0392 | C12: 0.0424 | E12: 0.118 | I12: 0.02 | J12: 0.1365 | L12: 0.93 | N12: 25 | P12: 3400
A13: Wheat | B13: 0.0392 | C13: 0.0424 | E13: 0.118 | I13: 0.02 | J13: 0.1365 | L13: 0.62 | N13: 25 | P13: 3400
A14: Roots and Tubers: fresh | B14: 0.2 | C14: 0.0485 | E14: 0.15 | I14: 0.09 | J14: 0.0715 | L14: 0.19 | N14: 25 | P14: 16200
A15: Roots and Tubers: processed | B15: 0.2 | C15: 0.0485 | E15: 0.15 | I15: 0.03 | J15: 0.12 | L15: 0.19 | N15: 25 | P15: 16200
A16: Oil crops | B16: 0.06 | C16: 0.0272 | E16: 0.05 | I16: 0.01 | J16: 0.1655 | L16: 1.1 | N16: 25 | P16: 3100
A17: Pulses | B17: 0.06 | C17: 0.0272 | E17: 0.05 | I17: 0.01 | J17: 0.1655 | L17: 0.37 | N17: 25 | P17: 700
A18: Fruits: fresh | B18: 0.1 | C18: 0.0837 | E18: 0.02 | I18: 0.08 | J18: 0.1035 | L18: 0.4 | N18: 3.2455 | P18: 9200
A19: Fruits: processed | B19: 0.1 | C19: 0.0837 | E19: 0.02 | I19: 0.02 | J19: 0.08 | L19: 0.4 | N19: 3.2455 | P19: 9200
A20: Vegetables: fresh | B20: 0.1 | C20: 0.0837 | E20: 0.02 | I20: 0.08 | J20: 0.1035 | L20: 0.4 | N20: 3.2455 | P20: 16500
A21: Vegetables: processed | B21: 0.1 | C21: 0.0837 | E21: 0.02 | I21: 0.02 | J21: 0.08 | L21: 0.4 | N21: 3.2455 | P21: 16500
A22: Meat: beef | B22: 0.023 | C22: 0.0055 | E22: 0.05 | I22: 0.06 | J22: 0.068 | L22: 33.26 | N22: 10
A23: Meat: pork | B23: 0.025 | C23: 0.0018 | E23: 0.05 | I23: 0.06 | J23: 0.068 | L23: 5.85 | N23: 10
A24: Meat: poultry | B24: 0.07 | C24: 0.0103 | E24: 0.05 | I24: 0.06 | J24: 0.068 | L24: 12.06 | N24: 10
A25: Eggs | B25: 0.06 | C25: 0.0238 | E25: 0.005 | I25: 0.04 | J25: 0.0365 | L25: 4.39 | N25: 10
A26: Milk | B26: 0.035 | C26: 0.0224 | E26: 0.012 | I26: 0.005 | J26: 0.026 | L26: 1.26 | N26: 5
A27: Fish and seafood: fresh | B27: 0.15 | C27: 0.165 | E27: 0.06 | I27: 0.11 | J27: 0.073 | L27: 2.77 | N27: 10
A28: Fish and seafood: processed | B28: 0.15 | C28: 0.165 | E28: 0.06 | I28: 0.05 | J28: 0.07 | L28: 2.77 | N28: 10
A29: Grapes | B29: 0.1 | C29: 0.0837 | E29: 0.02 | I29: 0.08 | J29: 0.1035 | L29: 0.62 | N29: 3.2455
A30: Tomato | B30: 0.1 | C30: 0.0837 | E30: 0.02 | I30: 0.08 | J30: 0.1035 | L30: 0.3 | N30: 3.25
A31: Dry beans | B31: 0.06 | C31: 0.0272 | E31: 0.05 | I31: 0.01 | J31: 0.1655 | L31: 0.37 | N31: 25
A32: Sugar crops
A33: Forage

Sheet DataNAWCA
A1: North Africa, West and Central Asia
B2: Reference losses per stage along the chain (% losses)
B3: Agricultural production | C3: Postharvest handling and storage | D3: (Possibly international) transport | E3: Processing and Packaging | F3: (Possibly international) transport | G3: Distribution center | H3: Distribution transport | I3: Retail | J3: Consumer | L3: CO2 impact Agricultural production | N3: Exergetic value (eMJ/kg) | P3: Productivity (kg/ha)
A5: (Percent losses)
A6: Barley | B6: 0.06 | C6: 0.0723 | E6: 0.09 | I6: 0.04 | J6: 0.12 | L6: 0.49 | N6: 25 | P6: 2000
A7: Maize | B7: 0.06 | C7: 0.0723 | E7: 0.09 | I7: 0.04 | J7: 0.12 | L7: 0.56 | N7: 25 | P7: 2000
A8: Millet | B8: 0.06 | C8: 0.0723 | E8: 0.09 | I8: 0.04 | J8: 0.12 | L8: 0.93 | N8: 25 | P8: 2000
A9: Oats | B9: 0.06 | C9: 0.0723 | E9: 0.09 | I9: 0.04 | J9: 0.12 | L9: 0.93 | N9: 25 | P9: 2000
A10: Rice | B10: 0.06 | C10: 0.0723 | E10: 0.09 | I10: 0.04 | J10: 0.12 | L10: 2.58 | N10: 25 | P10: 2000
A11: Rye | B11: 0.06 | C11: 0.0723 | E11: 0.09 | I11: 0.04 | J11: 0.12 | L11: 0.76 | N11: 25 | P11: 2000
A12: Sorghum | B12: 0.06 | C12: 0.0723 | E12: 0.09 | I12: 0.04 | J12: 0.12 | L12: 0.93 | N12: 25 | P12: 2000
A13: Wheat | B13: 0.06 | C13: 0.0723 | E13: 0.09 | I13: 0.04 | J13: 0.12 | L13: 0.6 | N13: 25 | P13: 2000
A14: Roots and Tubers: fresh | B14: 0.119 | C14: 0.0926 | E14: 0.12 | I14: 0.057 | J14: 0.06 | L14: 0.15 | N14: 25 | P14: 21000
A15: Roots and Tubers: processed | B15: 0.119 | C15: 0.0926 | E15: 0.12 | I15: 0.02 | J15: 0.03 | L15: 0.15 | N15: 25 | P15: 21000
A16: Oil crops | B16: 0.15 | C16: 0.028 | E16: 0.08 | I16: 0.02 | J16: 0.02 | L16: 1.59 | N16: 25 | P16: 1500
A17: Pulses | B17: 0.15 | C17: 0.028 | E17: 0.08 | I17: 0.02 | J17: 0.02 | L17: 0.71 | N17: 25 | P17: 800
A18: Fruits: fresh | B18: 0.1133 | C18: 0.113 | E18: 0.2 | I18: 0.1515 | J18: 0.13 | L18: 0.3 | N18: 3.2455 | P18: 10200
A19: Fruits: processed | B19: 0.1133 | C19: 0.113 | E19: 0.2 | I19: 0.03 | J19: 0.01 | L19: 0.3 | N19: 3.2455 | P19: 10200
A20: Vegetables: fresh | B20: 0.1133 | C20: 0.113 | E20: 0.2 | I20: 0.1515 | J20: 0.13 | L20: 0.3 | N20: 3.2455 | P20: 23000
A21: Vegetables: processed | B21: 0.1133 | C21: 0.113 | E21: 0.2 | I21: 0.03 | J21: 0.01 | L21: 0.3 | N21: 3.2455 | P21: 23000
A22: Meat: beef | B22: 0.1 | C22: 0.002 | E22: 0.05 | I22: 0.05 | J22: 0.08 | L22: 19.44 | N22: 10
A23: Meat: pork | B23: 0.08 | C23: 0.0023 | E23: 0.05 | I23: 0.05 | J23: 0.08 | L23: 5.67 | N23: 10
A24: Meat: poultry | B24: 0.08 | C24: 0.009 | E24: 0.05 | I24: 0.05 | J24: 0.08 | L24: 4.55 | N24: 10
A25: Eggs | B25: 0.06 | C25: 0.0489 | E25: 0.045 | I25: 0.04 | J25: 0.12 | L25: 5.54 | N25: 10
A26: Milk | B26: 0.035 | C26: 0.0332 | E26: 0.02 | I26: 0.08 | J26: 0.02 | L26: 2.77 | N26: 5
A27: Fish and seafood: fresh | B27: 0.066 | C27: 0.2246 | E27: 0.09 | I27: 0.1 | J27: 0.04 | L27: 6.86 | N27: 10
A28: Fish and seafood: processed | B28: 0.066 | C28: 0.2246 | E28: 0.09 | I28: 0.05 | J28: 0.02 | L28: 6.86 | N28: 10
A29: Grapes | B29: =B19 -> 0.1133 | C29: =C19 -> 0.113 | E29: =E19 -> 0.2 | I29: =I19 -> 0.03 | J29: =J19 -> 0.01 | L29: 0.55 | N29: 3.2455
A30: Tomato | B30: =B19 -> 0.1133 | C30: =C19 -> 0.113 | E30: =E19 -> 0.2 | I30: =I19 -> 0.03 | J30: =J19 -> 0.01 | L30: 0.27 | N30: 3.25
A31: Dry beans | B31: =B17 -> 0.15 | C31: =C17 -> 0.028 | E31: =E17 -> 0.08 | I31: =I17 -> 0.02 | J31: =J17 -> 0.02 | L31: 0.71 | N31: 25
A32: Sugar crops
A33: Forage

Sheet DataSSA
A1: Sub-Saharan Africa
B2: Reference losses per stage along the chain (% losses)
B3: Agricultural production | C3: Postharvest handling and storage | D3: (Possibly international) transport | E3: Processing and Packaging | F3: (Possibly international) transport | G3: Distribution center | H3: Distribution transport | I3: Retail | J3: Consumer | L3: CO2 impact Agricultural production | N3: Exergetic value (eMJ/kg) | P3: Productivity (kg/ha) | Q3: Area (million hectare)
A5: (Percent losses)
A6: Barley | B6: 0.0721 | C6: 0.0875 | E6: 0.1525 | I6: 0.02 | J6: 0.01 | L6: 0.8 | N6: 25 | P6: 1300
A7: Maize | B7: 0.0721 | C7: 0.0875 | E7: 0.1525 | I7: 0.02 | J7: 0.01 | L7: 1.56 | N7: 25 | P7: 1300
A8: Millet | B8: 0.0721 | C8: 0.0875 | E8: 0.1525 | I8: 0.02 | J8: 0.01 | L8: 0.93 | N8: 25 | P8: 1300
A9: Oats | B9: 0.0721 | C9: 0.0875 | E9: 0.1525 | I9: 0.02 | J9: 0.01 | L9: 0.93 | N9: 25 | P9: 1300
A10: Rice | B10: 0.0721 | C10: 0.0875 | E10: 0.1525 | I10: 0.02 | J10: 0.01 | L10: 5.23 | N10: 25 | P10: 1300
A11: Rye | B11: 0.0721 | C11: 0.0875 | E11: 0.1525 | I11: 0.02 | J11: 0.01 | L11: 0.38 | N11: 25 | P11: 1300
A12: Sorghum | B12: 0.0721 | C12: 0.0875 | E12: 0.1525 | I12: 0.02 | J12: 0.01 | L12: 0.93 | N12: 25 | P12: 1300
A13: Wheat | B13: 0.0721 | C13: 0.0875 | E13: 0.1525 | I13: 0.02 | J13: 0.01 | L13: 0.46 | N13: 25 | P13: 1300
A14: Roots and Tubers: fresh | B14: 0.14 | C14: 0.1694 | E14: 0.15 | I14: 0.05 | J14: 0.02 | L14: 0.52 | N14: 25 | P14: 8200
A15: Roots and Tubers: processed | B15: 0.14 | C15: 0.1694 | E15: 0.15 | I15: 0.02 | J15: 0.01 | L15: 0.52 | N15: 25 | P15: 8200
A16: Cassava | B16: 0.14 | C16: 0.1694 | E16: 0.15 | I16: 0.02 | J16: 0.01 | L16: 0.04 | N16: 25 | P16: 9000
A17: Oil palm | B17: 0.12 | C17: 0.0818 | E17: 0.08 | I17: 0.02 | J17: 0.01 | L17: 0.65 | N17: 25 | P17: 1400
A18: Oil crops | B18: 0.12 | C18: 0.0818 | E18: 0.08 | I18: 0.02 | J18: 0.01 | L18: 3.94 | N18: 25 | P18: 1400
A19: Pulses | B19: 0.12 | C19: 0.0818 | E19: 0.08 | I19: 0.02 | J19: 0.01 | L19: 0.12 | N19: 25 | P19: 500
A20: Fruits: fresh | B20: 0.1347 | C20: 0.1771 | E20: 0.25 | I20: 0.3413 | J20: 0.05 | L20: 0.4 | N20: 3.2455 | P20: 6900
A21: Fruits: processed | B21: 0.1347 | C21: 0.1771 | E21: 0.25 | I21: 0.1 | J21: 0.01 | L21: 0.4 | N21: 3.2455 | P21: 6900
A22: Vegetables: fresh | B22: 0.1347 | C22: 0.1771 | E22: 0.25 | I22: 0.3413 | J22: 0.05 | L22: 0.4 | N22: 3.2455 | P22: 9800
A23: Vegetables: processed | B23: 0.1347 | C23: 0.1771 | E23: 0.25 | I23: 0.1 | J23: 0.01 | L23: 0.4 | N23: 3.2455 | P23: 9800
A24: Meat: beef | B24: 0.1 | C24: 0.0093 | E24: 0.05 | I24: 0.07 | J24: 0.02 | L24: 33.96 | N24: 10
A25: Meat: pork | B25: 0.1 | C25: 0.0023 | E25: 0.05 | I25: 0.07 | J25: 0.02 | L25: 4.27 | N25: 10
A26: Meat: poultry | B26: 0.25 | C26: 0.009 | E26: 0.05 | I26: 0.07 | J26: 0.02 | L26: 4.89 | N26: 10
A27: Eggs | B27: 0.08 | C27: 0.08 | E27: 0.001 | I27: 0.03 | J27: 0.01 | L27: 6.18 | N27: 10
A28: Milk | B28: 0.06 | C28: 0.082 | E28: 0.02 | I28: 0.1 | J28: 0.001 | L28: 4.16 | N28: 5
A29: Fish and seafood: fresh | B29: 0.057 | C29: 0.2194 | E29: 0.09 | I29: 0.15 | J29: 0.02 | L29: 9.19 | N29: 10
A30: Fish and seafood: processed | B30: 0.057 | C30: 0.2194 | E30: 0.09 | I30: 0.1 | J30: 0.01 | L30: 9.19 | N30: 10
A31: Grapes | B31: 0.1347 | C31: 0.1771 | E31: 0.25 | I31: 0.3413 | J31: 0.05 | L31: 0.4 | N31: 3.2455
A32: Tomato | B32: 0.1347 | C32: 0.1771 | E32: 0.25 | I32: 0.3413 | J32: 0.05 | L32: 0.3 | N32: 3.25
A33: Dry beans | B33: 0.12 | C33: 0.0818 | E33: 0.08 | I33: 0.02 | J33: 0.01 | L33: 0.12 | N33: 25 | S33: Nemecek et al., 2011:
A34: Sugar crops | P34: 60700
A35: Forage | P35: 22000

Sheet DataSSEAsia
A1: South and South-East Asia
B2: Reference losses per stage along the chain (% losses)
B3: Agricultural production | C3: Postharvest handling and storage | D3: (Possibly international) transport | E3: Processing and Packaging | F3: (Possibly international) transport | G3: Distribution center | H3: Distribution transport | I3: Retail | J3: Consumer | L3: CO2 impact Agricultural production | N3: Exergetic value (eMJ/kg) | P3: Productivity (kg/ha)
A5: (Percent losses)
A6: Barley | B6: 0.06 | C6: 0.0659 | E6: 0.07 | I6: 0.0298 | J6: 0.03 | L6: 0.75 | N6: 25 | P6: 1300
A7: Maize | B7: 0.06 | C7: 0.0659 | E7: 0.07 | I7: 0.0298 | J7: 0.03 | L7: 1.73 | N7: 25 | P7: 1300
A8: Millet | B8: 0.06 | C8: 0.0659 | E8: 0.07 | I8: 0.0298 | J8: 0.03 | L8: 0.93 | N8: 25 | P8: 1300
A9: Oats | B9: 0.06 | C9: 0.0659 | E9: 0.07 | I9: 0.0298 | J9: 0.03 | L9: 0.93 | N9: 25 | P9: 1300
A10: Rice | B10: 0.06 | C10: 0.0659 | E10: 0.07 | I10: 0.0298 | J10: 0.03 | L10: 1.91 | N10: 25 | P10: 1300
A11: Rye | B11: 0.06 | C11: 0.0659 | E11: 0.07 | I11: 0.0298 | J11: 0.03 | L11: 0.7 | N11: 25 | P11: 1300
A12: Sorghum | B12: 0.06 | C12: 0.0659 | E12: 0.07 | I12: 0.0298 | J12: 0.03 | L12: 0.93 | N12: 25 | P12: 1300
A13: Wheat | B13: 0.06 | C13: 0.0659 | E13: 0.07 | I13: 0.0298 | J13: 0.03 | L13: 0.46 | N13: 25 | P13: 1300
A14: Roots and Tubers: fresh | B14: 0.0815 | C14: 0.1211 | E14: 0.1 | I14: 0.1078 | J14: 0.0388 | L14: 0.16 | N14: 25 | P14: 16200
A15: Roots and Tubers: processed | B15: 0.0815 | C15: 0.1211 | E15: 0.1 | I15: 0.08 | J15: 0.05 | L15: 0.16 | N15: 25 | P15: 16200
A16: Oil crops | B16: 0.07 | C16: 0.034 | E16: 0.08 | I16: 0.02 | J16: 0.01 | L16: 1.96 | N16: 25 | P16: 3100
A17: Pulses | B17: 0.07 | C17: 0.034 | E17: 0.08 | I17: 0.02 | J17: 0.01 | L17: 0.34 | N17: 25 | P17: 700
A18: Fruits: fresh | B18: 0.0871 | C18: 0.0987 | E18: 0.25 | I18: 0.1296 | J18: 0.1816 | L18: 0.5 | N18: 3.2455 | P18: 9200
A19: Fruits: processed | B19: 0.0871 | C19: 0.0987 | E19: 0.25 | I19: 0.1 | J19: 0.01 | L19: 0.5 | N19: 3.2455 | P19: 9200
A20: Vegetables: fresh | B20: 0.0871 | C20: 0.0987 | E20: 0.25 | I20: 0.1296 | J20: 0.1816 | L20: 0.81 | N20: 3.2455 | P20: 16500
A21: Vegetables: processed | B21: 0.0871 | C21: 0.0987 | E21: 0.25 | I21: 0.1 | J21: 0.01 | L21: 0.81 | N21: 3.2455 | P21: 16500
A22: Meat: beef | B22: 0.1 | C22: 0.0021 | E22: 0.05 | I22: 0.07 | J22: 0.04 | L22: 39.08 | N22: 10
A23: Meat: pork | B23: 0.06 | C23: 0.0047 | E23: 0.05 | I23: 0.07 | J23: 0.04 | L23: 6.92 | N23: 10
A24: Meat: poultry | B24: 0.08 | C24: 0.0097 | E24: 0.05 | I24: 0.07 | J24: 0.04 | L24: 4.68 | N24: 10
A25: Eggs | B25: 0.08 | C25: 0.0723 | E25: 0.001 | I25: 0.03 | J25: 0.02 | L25: 3.06 | N25: 10
A26: Milk | B26: 0.035 | C26: 0.0468 | E26: 0.02 | I26: 0.1 | J26: 0.01 | L26: 2.31 | N26: 5
A27: Fish and seafood: fresh | B27: 0.082 | C27: 0.2547 | E27: 0.09 | I27: 0.1233 | J27: 0.02 | L27: 5.29 | N27: 10
A28: Fish and seafood: processed | B28: 0.082 | C28: 0.2547 | E28: 0.09 | I28: 0.1 | J28: 0.01 | L28: 5.29 | N28: 10
A29: Grapes | B29: 0.0871 | C29: 0.0987 | E29: 0.25 | I29: 0.1296 | J29: 0.1816 | L29: 0.62 | N29: 3.2455
A30: Tomato | B30: 0.0871 | C30: 0.0987 | E30: 0.25 | I30: 0.1296 | J30: 0.1816 | L30: 0.81 | N30: 3.25
A31: Dry beans | B31: 0.07 | C31: 0.034 | E31: 0.08 | I31: 0.02 | J31: 0.01 | L31: 0.34 | N31: 25
A32: Nuts | B32: 0.07 | C32: 0.034 | E32: 0.08 | I32: 0.02 | J32: 0.01 | L32: 0.8

Sheet DataLatAm
A1: Latin America
B2: Reference losses per stage along the chain (% losses)
B3: Agricultural production | C3: Postharvest handling and storage | D3: (Possibly international) transport | E3: Processing and Packaging | F3: (Possibly international) transport | G3: Distribution center | H3: Distribution transport | I3: Retail | J3: Consumer | L3: CO2 impact Agricultural production | N3: Exergetic value (eMJ/kg) | P3: Productivity (kg/ha) | Q3: Area (million hectare)
A5: (Percent losses)
A6: Barley | B6: 0.06 | C6: 0.0746 | E6: 0.09 | I6: 0.04 | J6: 0.1 | L6: 0.84 | N6: 25 | P6: 3000 | Q6: 36.9
A7: Maize | B7: 0.06 | C7: 0.0746 | E7: 0.09 | I7: 0.04 | J7: 0.1 | L7: 0.81 | N7: 25 | P7: 3000 | Q7: 36.9
A8: Millet | B8: 0.06 | C8: 0.0746 | E8: 0.09 | I8: 0.04 | J8: 0.1 | L8: 0.93 | N8: 25 | P8: 3000 | Q8: 36.9
A9: Oats | B9: 0.06 | C9: 0.0746 | E9: 0.09 | I9: 0.04 | J9: 0.1 | L9: 0.93 | N9: 25 | P9: 3000 | Q9: 36.9
A10: Rice | B10: 0.06 | C10: 0.0746 | E10: 0.09 | I10: 0.04 | J10: 0.1 | L10: 2.58 | N10: 25 | P10: 3000 | Q10: 36.9
A11: Rye | B11: 0.06 | C11: 0.0746 | E11: 0.09 | I11: 0.04 | J11: 0.1 | L11: 0.76 | N11: 25 | P11: 3000 | Q11: 36.9
A12: Sorghum | B12: 0.06 | C12: 0.0746 | E12: 0.09 | I12: 0.04 | J12: 0.1 | L12: 0.93 | N12: 25 | P12: 3000 | Q12: 36.9
A13: Wheat | B13: 0.06 | C13: 0.0746 | E13: 0.09 | I13: 0.04 | J13: 0.1 | L13: 0.6 | N13: 25 | P13: 3000 | Q13: 36.9
A14: Roots and Tubers: fresh | B14: 0.14 | C14: 0.1039 | E14: 0.12 | I14: 0.03 | J14: 0.04 | L14: 0.18 | N14: 25 | P14: 12100 | Q14: 3.9
A15: Roots and Tubers: processed | B15: 0.14 | C15: 0.1039 | E15: 0.12 | I15: 0.03 | J15: 0.02 | L15: 0.18 | N15: 25 | P15: 12100
A16: Oil crops | B16: 0.06 | C16: 0.0149 | E16: 0.08 | I16: 0.02 | J16: 0.02 | L16: 0.91 | N16: 25 | P16: 2600 | Q16: 29.8
A17: Pulses | B17: 0.06 | C17: 0.0149 | E17: 0.08 | I17: 0.02 | J17: 0.02 | L17: 0.15 | N17: 25 | P17: 800 | Q17: 5.4
A18: Fruits: fresh | B18: 0.2 | C18: 0.1432 | E18: 0.2 | I18: 0.12 | J18: 0.1 | L18: 0.4 | N18: 3.2455 | P18: 14200 | Q18: 5.9
A19: Fruits: processed | B19: 0.2 | C19: 0.1432 | E19: 0.2 | I19: 0.02 | J19: 0.01 | L19: 0.4 | N19: 3.2455 | P19: 14200
A20: Vegetables: fresh | B20: 0.2 | C20: 0.1432 | E20: 0.2 | I20: 0.12 | J20: 0.1 | L20: 0.31 | N20: 3.2455 | P20: 14200 | Q20: 1.7
A21: Vegetables: processed | B21: 0.2 | C21: 0.1432 | E21: 0.2 | I21: 0.02 | J21: 0.01 | L21: 0.31 | N21: 3.2455 | P21: 14200
A22: Meat: beef | B22: 0.05 | C22: 0.0132 | E22: 0.05 | I22: 0.05 | J22: 0.06 | L22: 35.01 | N22: 10
A23: Meat: pork | B23: 0.06 | C23: 0.0041 | E23: 0.05 | I23: 0.05 | J23: 0.06 | L23: 4.65 | N23: 10
A24: Meat: poultry | B24: 0.06 | C24: 0.0041 | E24: 0.05 | I24: 0.05 | J24: 0.06 | L24: 3.38 | N24: 10
A25: Eggs | B25: 0.06 | C25: 0.0621 | E25: 0.005 | I25: 0.04 | J25: 0.04 | L25: 5.2 | N25: 10
A26: Milk | B26: 0.035 | C26: 0.0374 | E26: 0.02 | I26: 0.08 | J26: 0.04 | L26: 2.52 | N26: 5
A27: Fish and seafood: fresh | B27: 0.057 | C27: 0.1961 | E27: 0.09 | I27: 0.1 | J27: 0.04 | L27: 3.01 | N27: 10
A28: Fish and seafood: processed | B28: 0.057 | C28: 0.1961 | E28: 0.09 | I28: 0.05 | J28: 0.02 | L28: 3.01 | N28: 10
A29: Grapes | B29: 0.2 | C29: 0.1432 | E29: 0.2 | I29: 0.12 | J29: 0.1 | L29: 0.67 | N29: 3.2455
A30: Tomato | B30: 0.2 | C30: 0.1432 | E30: 0.2 | I30: 0.12 | J30: 0.1 | L30: 0.31 | N30: 3.25
A31: Dry beans | B31: 0.2 | C31: 0.1432 | E31: 0.2 | I31: 0.02 | J31: 0.01 | L31: 0.31 | N31: 25
A32: Sugar crops | P32: 65400 | Q32: 8
A33: Forage | P33: 20900 | Q33: 8.6

Sheet Regions (hidden)
A1: Regions
A3: Europe
A4: North America and Ociania
A5: Industrialized Asia
A6: Sub-Saharan Africa
A7: North Africa, West and Central Asia
A8: South and Southeast Asia
A9: Latin America

Sheet TransportModalities
A1: Transport
A3: Modality | B3: Fuel use per ton.km (liter) | C3: Primary energy equiv. MJ per ton.km | D3: CO2 equiv.
A4: Delivery van | C4: 31.38063902 | D4: 1.950666
A5: Delivery van, full load capacity used, empty return | C5: =18/50*31.380639015 -> 11.29703005 | D5: =18/50*1.950666 -> 0.70223976
A6: Lorry, very larg (>32ton) | C6: 1.454810238 | D6: 0.084830064
A7: Truck, large | C7: 2.79414006 | D7: 0.1698907
A8: Truck, medium | C8: 3.569033208 | D8: 0.2198795
A9: Truck, small | C9: 8.442670079 | D9: 0.52529077
A10: Cargo train, elektric | C10: 0.8218900291 | D10: 0.046818
A11: Cargo train, diesel | C11: 0.8692149952 | D11: 0.059339021
A12: Inland cargo ship | C12: 0.708677469 | D12: 0.051705811
A13: Sea ship, cargo | C13: 0.1790544047 | D13: 0.011546756
A14: Sea ship, containers | C14: =C13/D13*D14 -> 0.3256449257 | D14: 0.021 | F14: derived from CO2emissiefactoren.nl
A15: Air cargo, continental | C15: 26.17764966 | D15: 1.7003659
A16: Air cargo, intercontinental | C16: 16.88029816 | D16: 1.0959433

Sheet ResiduesManagmOptions
A1: Residues management options
A3: Processing pathway | B3: Net GHG emissions (kg CO2 eq. per kg food waste)
A4: Landfilling | B4: 0.79
A5: Combustion | B5: -0.13
A6: Composting | B6: -0.17
A7: Anaerobic digestion (biogas) | B7: -0.32
A8: (left out of the analysis) | B8: 0
